fUST/lending_fUST_20240117
["ID","MTS","AMOUNT","RATE_DAILY","PERIOD"]
[311851033,1705469444173,-500.0,0.00030136,2]
[311851034,1705469444193,-962.59,0.00030136,2]
[311851035,1705469444219,-500.0,0.00030136,2]
[311851036,1705469444241,-500.0,0.00030136,2]
[311851037,1705469444266,-500.0,0.00030136,2]
[311851038,1705469444287,-497.37968749,0.00030136,2]
[311851039,1705469444306,-500.0,0.00030136,2]
[311851040,1705469444330,-632.46,0.00030136,2]
[311851041,1705469444346,-522.0123093,0.00030136,2]
[311851042,1705469444369,-221.17429449,0.00030136,2]
[311851043,1705469444381,-500.0,0.00030136,2]
[311851044,1705469444399,-500.0,0.00030136,2]
[311851045,1705469444423,-722.7,0.00030136,2]
[311851046,1705469444457,-500.0,0.00030136,2]
[311851047,1705469444479,-500.0,0.00030136,2]
[311851048,1705469444504,-500.0,0.00030136,2]
[311851049,1705469444524,-500.0,0.00030136,2]
[311851050,1705469444536,-534.5,0.00030136,2]
[311851051,1705469444553,-505.48723603,0.00030136,2]
[311851052,1705469444566,-500.0,0.00030136,2]
[311851053,1705469444579,-500.0,0.00030136,2]
[311851054,1705469444603,-892.42,0.00030136,2]
[311851055,1705469444624,-252.51760587,0.00030136,2]
[311851056,1705469444646,-501.14569971,0.00030136,2]
[311851057,1705469444664,-1000.0,0.00030136,2]
[311851058,1705469444683,-500.0,0.00030136,2]
[311851059,1705469444725,-179.25954201,0.00030136,2]
[311851060,1705469444742,-640.90235997,0.00030136,2]
[311851061,1705469444759,-858.89,0.00030136,2]
[311851062,1705469444770,-500.0,0.00030136,2]
[311851063,1705469444783,-559.59,0.00030136,2]
[311851064,1705469444801,-500.0,0.00030136,2]
[311851065,1705469444830,-500.0,0.00030136,2]
[311851066,1705469444872,-601.97581751,0.00030136,2]
[311851067,1705469444897,-500.0,0.00030136,2]
[311851068,1705469444926,-500.0,0.00030136,2]
[311851069,1705469444958,-500.0,0.00030136,2]
[311851070,1705469444975,-500.0,0.00030136,2]
[311851071,1705469444993,-500.0,0.00030136,2]
[311851072,1705469445020,-500.0,0.00030136,2]
[311851073,1705469445043,-500.0,0.00030136,2]
[311851074,1705469445066,-502.48270235,0.00030136,2]
[311851075,1705469445089,-500.0,0.00030136,2]
[311851076,1705469445105,-500.0,0.00030136,2]
[311851077,1705469445131,-500.0,0.00030136,2]
[311851078,1705469445156,-500.0,0.00030136,2]
[311851079,1705469445186,-500.0,0.00030136,2]
[311851080,1705469445214,-500.0,0.00030136,2]
[311851081,1705469445246,-500.0,0.00030136,2]
[311851082,1705469445272,-935.15,0.00030136,2]
[311851083,1705469445294,-505.95267522,0.00030136,2]
[311851084,1705469445305,-503.73641132,0.00030136,2]
[311851085,1705469445320,-500.0,0.00030136,2]
[311851086,1705469445344,-314.44072528,0.00030136,2]
[311851087,1705469445357,-500.0,0.00030136,2]
[311851088,1705469445376,-824.03,0.00030136,2]
[311851089,1705469445400,-500.0,0.00030136,2]
[311851090,1705469445414,-500.0,0.00030136,2]
[311851091,1705469445429,-500.0,0.00030136,2]
[311851092,1705469445447,-420.10258733,0.00030136,2]
[311851093,1705469445462,-500.0,0.00030136,2]
[311851094,1705469445492,-500.0,0.00030136,2]
[311851095,1705469445516,-500.0,0.00030136,2]
[311851096,1705469445540,-500.0,0.00030136,2]
[311851097,1705469445563,-500.0,0.00030136,2]
[311851098,1705469445609,-500.0,0.00030136,2]
[311851099,1705469445627,-500.0,0.00030136,2]
[311851100,1705469445667,-500.0,0.00030136,2]
[311851101,1705469445681,-261.31076788,0.00030136,2]
[311851102,1705469445697,-500.0,0.00030136,2]
[311851103,1705469445709,-500.0,0.00030136,2]
[311851104,1705469445724,-500.0,0.00030136,2]
[311851105,1705469445741,-703.98,0.00030136,7]
[311851106,1705469445765,-500.0,0.00030136,2]
[311851107,1705469445787,-501.47332198,0.00030136,2]
[311851108,1705469445807,-474.31978255,0.00030136,2]
[311851109,1705469445838,-500.0,0.00030136,2]
[311851110,1705469445854,-500.0,0.00030136,2]
[311851111,1705469445876,-532.97085441,0.00030136,2]
[311851112,1705469445901,-500.0,0.00030136,2]
[311851113,1705469445924,-500.0,0.00030136,2]
[311851114,1705469445948,-500.0,0.00030136,2]
[311851115,1705469445973,-500.0,0.00030136,2]
[311851116,1705469445992,-1145.98,0.00030136,2]
[311851117,1705469446005,-500.18169587,0.00030136,2]
[311851118,1705469446054,-574.11,0.00030136,2]
[311851119,1705469446080,-500.0,0.00030136,2]
[311851120,1705469446096,-614.14,0.00030136,2]
[311851121,1705469446107,-496.38117138,0.00030136,2]
[311851122,1705469446128,-1754.74,0.00030136,2]
[311851123,1705469446158,-500.0,0.00030136,2]
[311851124,1705469446169,-500.0,0.00030136,2]
[311851125,1705469446183,-500.0,0.00030136,2]
[311851126,1705469446194,-500.0,0.00030136,2]
[311851127,1705469446210,-500.0,0.00030136,2]
[311851128,1705469446227,-503.79040743,0.00030136,2]
[311851129,1705469446247,-605.41,0.00030136,2]
[311851130,1705469446262,-500.0,0.00030136,2]
[311851131,1705469446276,-500.0,0.00030136,2]
[311851132,1705469446289,-687.31,0.00030136,2]
[311851133,1705469446302,-500.0,0.00030136,2]
[311851134,1705469446316,-706.63,0.00030136,2]
[311851135,1705469446327,-500.0,0.00030136,2]
[311851136,1705469446351,-500.0,0.00030136,2]
[311851137,1705469446362,-990.85,0.00030136,2]
[311851138,1705469446377,-500.0,0.00030136,2]
[311851139,1705469446395,-500.0,0.00030136,2]
[311851140,1705469446414,-500.0,0.00030136,2]
[311851141,1705469446434,-500.0,0.00030136,2]
[311851142,1705469446445,-500.0,0.00030136,2]
[311851143,1705469446461,-502.96184779,0.00030136,2]
[311851144,1705469446474,-500.0,0.00030136,2]
[311851145,1705469446490,-542.85,0.00030136,2]
[311851146,1705469446509,-500.0,0.00030136,2]
[311851147,1705469446525,-502.52359006,0.00030136,2]
[311851148,1705469446614,-1282.82,0.00030136,2]
[311851149,1705469446627,-501.70956628,0.00030136,2]
[311851151,1705469446640,-500.0,0.00030136,2]
[311851153,1705469446660,-500.0,0.00030136,2]
[311851154,1705469446681,-500.0,0.00030136,2]
[311851155,1705469446696,-500.0,0.00030136,2]
[311851156,1705469446709,-429.64655054,0.00030136,2]
[311851157,1705469446725,-506.04070361,0.00030136,2]
[311851158,1705469446735,-500.0,0.00030136,2]
[311851159,1705469446749,-502.91683953,0.00030136,2]
[311851160,1705469446762,-500.0,0.00030136,2]
[311851161,1705469446791,-500.0,0.00030136,2]
[311851162,1705469446806,-500.0,0.00030136,2]
[311851163,1705469446824,-500.0,0.00030136,2]
[311851164,1705469446834,-500.0,0.00030136,2]
[311851165,1705469446867,-500.0,0.00030136,2]
[311851166,1705469446880,-500.0,0.00030136,2]
[311851167,1705469446891,-500.0,0.00030136,2]
[311851168,1705469446910,-500.0,0.00030136,2]
[311851169,1705469446928,-500.0,0.00030136,2]
[311851170,1705469446942,-500.0,0.00030136,2]
[311851171,1705469446957,-500.0,0.00030136,2]
[311851172,1705469446977,-500.0,0.00030136,2]
[311851173,1705469446989,-500.0,0.00030136,2]
[311851174,1705469447023,-500.0,0.00030136,2]
[311851175,1705469447051,-500.0,0.00030136,2]
[311851176,1705469447065,-500.0,0.00030136,2]
[311851178,1705469447075,-500.0,0.00030136,2]
[311851179,1705469447114,-1426.44,0.00030136,2]
[311851180,1705469447135,-500.0,0.00030136,2]
[311851181,1705469447151,-500.0,0.00030136,2]
[311851182,1705469447173,-500.0,0.00030136,2]
[311851183,1705469447184,-8337.32,0.00030136,2]
[311851184,1705469447202,-500.0,0.00030136,2]
[311851185,1705469447226,-609.49,0.00030136,2]
[311851186,1705469447237,-500.0,0.00030136,2]
[311851187,1705469447260,-500.0,0.00030136,2]
[311851188,1705469447283,-2266.9,0.00030136,2]
[311851189,1705469447318,-500.0,0.00030136,2]
[311851190,1705469447348,-10402.16,0.00030136,2]
[311851191,1705469447365,-500.0,0.00030136,2]
[311851192,1705469447385,-1994.46,0.00030136,2]
[311851193,1705469447408,-332.27608059,0.00030136,2]
[311851194,1705469447446,-500.0,0.00030136,4]
[311851195,1705469447467,-500.29488324,0.00030136,2]
[311851196,1705469447514,-2854.78,0.00030136,2]
[311851197,1705469447536,-551.84989273,0.00030136,2]
[311851198,1705469447559,-500.0,0.00030136,2]
[311851199,1705469447583,-500.0,0.00030136,2]
[311851200,1705469447601,-8062.433552,0.00030136,2]
[311851201,1705469447791,-12750.086448,0.00030136,2]
[311851202,1705469447805,-3008.99,0.00030136,2]
[311851204,1705469447830,-500.0,0.00030136,2]
[311851205,1705469447857,-500.0,0.00030136,2]
[311851206,1705469447896,-502.52259214,0.00030136,2]
[311851207,1705469447926,-500.0,0.00030136,2]
[311851208,1705469447954,-500.0,0.00030136,2]
[311851209,1705469447973,-500.0,0.00030136,2]
[311851210,1705469447996,-500.0,0.00030136,2]
[311851211,1705469448013,-500.0,0.00030136,2]
[311851212,1705469448033,-649.30408372,0.00030136,2]
[311851213,1705469448063,-500.0,0.00030136,2]
[311851214,1705469448075,-4779.16,0.00030136,2]
[311851215,1705469448086,-500.0,0.00030136,2]
[311851216,1705469448099,-500.0,0.00030136,2]
[311851217,1705469448111,-500.0,0.00030136,2]
[311851218,1705469448125,-500.0,0.00030136,2]
[311851219,1705469448141,-3435.68,0.00030136,2]
[311851220,1705469448159,-500.0,0.00030136,2]
[311851221,1705469448171,-599.58,0.00030136,2]
[311851222,1705469448191,-500.0,0.00030136,2]
[311851223,1705469448203,-150.0,0.00030136,2]
[311851224,1705469448225,-500.0,0.00030136,2]
[311851225,1705469448244,-859.15,0.00030136,2]
[311851226,1705469448259,-500.0,0.00030136,2]
[311851227,1705469448280,-38607.69,0.00030136,2]
[311851228,1705469448294,-746.33,0.00030136,2]
[311851229,1705469448389,-840.11,0.00030136,2]
[311851230,1705469448401,-500.0,0.00030136,2]
[311851231,1705469448413,-500.0,0.00030136,2]
[311851232,1705469448425,-623.73,0.00030136,2]
[311851233,1705469448437,-20819.83,0.00030136,2]
[311851234,1705469448456,-500.0,0.00030136,2]
[311851235,1705469448478,-500.0,0.00030136,2]
[311851236,1705469448498,-2143.3,0.00030136,2]
[311851237,1705469448528,-6856.96,0.00030136,2]
[311851238,1705469448565,-500.0,0.00030136,2]
[311851239,1705469448595,-500.0,0.00030136,2]
[311851240,1705469448608,-500.61019239,0.00030136,2]
[311851241,1705469448624,-501.36615575,0.00030136,2]
[311851242,1705469448638,-500.0,0.00030136,2]
[311851243,1705469448649,-501.46244598,0.00030136,2]
[311851244,1705469448668,-500.0,0.00030136,2]
[311851245,1705469448681,-500.0,0.00030136,2]
[311851246,1705469448707,-826.66,0.00030136,2]
[311851247,1705469448725,-500.0,0.00030136,2]
[311851248,1705469448743,-500.0,0.00030136,2]
[311851249,1705469448756,-500.0,0.00030136,2]
[311851250,1705469448773,-1201.21,0.00030136,2]
[311851251,1705469448790,-500.0,0.00030136,2]
[311851252,1705469448809,-500.0,0.00030136,2]
[311851253,1705469448825,-500.0,0.00030136,2]
[311851254,1705469448836,-500.0,0.00030136,2]
[311851255,1705469448848,-500.0,0.00030136,2]
[311851256,1705469448862,-500.0,0.00030136,2]
[311851257,1705469448878,-500.0,0.00030136,2]
[311851258,1705469448892,-114.53534178,0.00030136,2]
[311851259,1705469449360,-385.46465822,0.00030136,2]
[311851260,1705469449392,-2693.88,0.00030136,2]
[311851261,1705469449418,-174.79054583,0.00030136,2]
[311851262,1705469449437,-500.0,0.00030136,2]
[311851263,1705469449451,-500.0,0.00030136,2]
[311851264,1705469449474,-500.0,0.00030136,2]
[311851265,1705469449486,-522.24,0.00030136,2]
[311851266,1705469449505,-3414.82,0.00030136,2]
[311851267,1705469449523,-8354.26,0.00030136,2]
[311851268,1705469449541,-500.0,0.00030136,2]
[311851269,1705469449556,-500.0,0.00030136,2]
[311851270,1705469449568,-500.0,0.00030136,2]
[311851271,1705469449582,-294.2266857,0.00030136,2]
[311851272,1705469450893,-644.56243777,0.00030025,3]
[311851368,1705470638631,-154.98450155,0.00025456,2]
[311851369,1705470638642,-294.58131325,0.00025457,2]
[311851370,1705470638653,-1986.59469693,0.00025457,2]
[311851371,1705470638662,-154.98450155,0.00025457,2]
[311851372,1705470638673,-3482.62955366,0.00025457,2]
[311851373,1705470638683,-164.97376149,0.00025457,2]
[311851374,1705470638692,-4809.36169372,0.00025458,2]
[311851375,1705470638702,-6603.08681024,0.00025458,2]
[311851376,1705470638712,-2995.12470388,0.00025459,2]
[311851378,1705470638722,-237.84642437,0.00025459,2]
[311851381,1705470638847,-1588.60568926,0.0002546,2]
[311851382,1705470638859,-265.226858,0.00025461,2]
[311851383,1705470638868,-24900.0,0.00025469,2]
[311851384,1705470638878,-980.6439991,0.00027116,2]
[311851385,1705470638888,-201.07,0.000291,4]
[311851386,1705470638899,-2273.11748662,0.00029532,4]
[311851387,1705470638909,-6057.12571827,0.00029532,4]
[311851388,1705470638919,-392.42127938,0.00029532,4]
[311851389,1705470638930,-154.29069251,0.00029748,2]
[311851390,1705470638939,-160.00733797,0.00029793,2]
[311851391,1705470638949,-200.05434929,0.00029878,2]
[311851392,1705470638958,-257.75510364,0.00029883,2]
[311851393,1705470638968,-160.00733797,0.00029954,2]
[311851394,1705470638978,-15223.34,0.0002999,3]
[311851395,1705470638989,-3004.29,0.0003,2]
[311851396,1705470638999,-5000.0,0.0003,2]
[311851397,1705470639009,-1283.62,0.0003,2]
[311851398,1705470639019,-843.73,0.0003,2]
[311851399,1705470639030,-5000.0,0.0003,2]
[311851400,1705470639039,-534.33,0.0003,2]
[311851401,1705470639050,-154.98450155,0.0003,4]
[311851402,1705470639060,-153.0,0.0003,2]
[311851403,1705470639072,-640.68851149,0.0003,4]
[311851404,1705470639084,-243.87038791,0.0003,4]
[311851405,1705470639095,-154.54943874,0.00030014,7]
[311851406,1705470639106,-154.98450155,0.00030025,2]
[311851407,1705470639117,-282.97323289,0.00030025,3]
[311851408,1705470639126,-300.0,0.00030025,4]
[311851409,1705470639135,-156.1690088,0.00030025,4]
[311851410,1705470639146,-1200.0,0.00030025,4]
[311851411,1705470639155,-154.98450155,0.00030025,4]
[311851412,1705470639165,-155.70608569,0.00030025,4]
[311851413,1705470639175,-154.21631896,0.00030031,2]
[311851414,1705470639185,-154.29069251,0.00030047,7]
[311851415,1705470639195,-2000.0,0.000301,2]
[311851416,1705470639205,-2000.0,0.000301,2]
[311851417,1705470639215,-2000.0,0.0003011,2]
[311851418,1705470639225,-2000.0,0.0003011,2]
[311851419,1705470639235,-2000.0,0.0003012,2]
[311851420,1705470639245,-2000.0,0.0003012,2]
[311851421,1705470639255,-587.69337227,0.00030128,4]
[311851422,1705470639265,-155.0,0.00030128,4]
[311851423,1705470639276,-8177.93826556,0.00030129,4]
[311851424,1705470639286,-2000.0,0.0003013,2]
[311851425,1705470639296,-2000.0,0.0003013,2]
[311851426,1705470639306,-15793.78562041,0.0003013,2]
[311851427,1705470639317,-6493.49992593,0.00030131,2]
[311851428,1705470639327,-199.9363713,0.00030131,5]
[311851447,1705470643654,-154.98450155,0.00025456,4]
[311851448,1705470643664,-154.98450155,0.00030025,4]
[311851449,1705470643676,-68.88944206,0.00030131,5]
[311851450,1705470643686,-257.2289147,0.00030131,4]
[311851451,1705470643695,-363.94069935,0.00030131,4]
[311851452,1705470643705,-309.92647481,0.00030131,4]
[311851453,1705470643715,-155.70270069,0.00030131,4]
[311851454,1705470643724,-155.79402553,0.00030131,2]
[311851455,1705470643733,-155.50751184,0.00030131,4]
[311851456,1705470643742,-2981.04122792,0.00030131,4]
[311851457,1705470643754,-960.41320447,0.00030131,4]
[311851458,1705470643764,-37.79806358,0.00030131,2]
[311851474,1705470646621,-856.16796637,0.00030025,4]
[311851480,1705471277757,822.5345336,0.0001797,2]
[311851482,1705471308196,1108.86696375,0.0001797,2]
[311851483,1705471330194,1108.86696375,0.0001797,2]
[311851484,1705471350200,273.16481065,0.0001797,2]
[311851485,1705471354497,400.53090856,0.00017969,2]
[311851486,1705471355447,616.22732514,0.00017969,2]
[311851487,1705471363603,24585.9009184,0.00017959,2]
[311851488,1705471369040,154.98450155,0.0001797,2]
[311851489,1705471387040,155.06631104,0.0001797,2]
[311851490,1705471397830,1054.71326894,0.0002,7]
[311851492,1705471410711,2177.2524077,0.00017954,2]
[311851493,1705471411831,1054.71326894,0.0002,7]
[311851494,1705471431107,267.5385862,0.0002,7]
[311851495,1705471436393,24900.0,0.0001795,2]
[311851499,1705471565923,1980.820669,0.00017937,2]
[311851501,1705471674359,6012.10338151,0.00017971,2]
[311851503,1705471696352,5998.21298933,0.00017967,2]
[311851504,1705471702803,-4900.0,0.00018344,2]
[311851505,1705471702968,-100.0,0.00018344,2]
[311851507,1705471784484,379.0499592,0.00017843,2]
[311851510,1705471814830,919.00466,0.00017839,2]
[311851578,1705471831692,-154.98450155,0.00018832,2]
[311851580,1705471831701,-294.58131325,0.00018833,2]
[311851582,1705471831711,-62.82434867,0.00018833,2]
[311851585,1705471831751,-92.16015288,0.00018833,2]
[311851587,1705471831761,-154.98450155,0.00018833,2]
[311851589,1705471831770,-526.2848544,0.00018834,2]
[311851591,1705471831778,-1241.4576912,0.00018834,2]
[311851592,1705471831787,-400.53090856,0.00018834,2]
[311851594,1705471831796,-3127.11427386,0.00018834,2]
[311851596,1705471831806,-4809.36169372,0.00018834,2]
[311851598,1705471831815,-175.07495536,0.00018834,2]
[311851600,1705471831824,-154.98450155,0.00018835,2]
[311851602,1705471831833,-260.63461917,0.00018835,2]
[311851604,1705471831842,-154.98450155,0.00018835,2]
[311851606,1705471831851,-181.79050164,0.00018835,2]
[311851608,1705471831860,-208.66038293,0.00018835,2]
[311851610,1705471831868,-13708.60036368,0.00018835,2]
[311851612,1705471831878,-1467.5417489,0.00018836,2]
[311851614,1705471831887,-7996.6868672,0.00018836,2]
[311851616,1705471831900,-162.97782864,0.00018836,2]
[311851618,1705471831910,-873.51620875,0.00018836,2]
[311851620,1705471831919,-561.15323628,0.00018836,2]
[311851622,1705471831929,-272.32280016,0.00018837,2]
[311851624,1705471831940,-3482.62955366,0.00018837,2]
[311851626,1705471831950,-154.98450155,0.00018838,3]
[311851627,1705471831960,-154.98450155,0.00018838,2]
[311851628,1705471831970,-322.82895147,0.00018838,2]
[311851629,1705471831981,-2812.5349439,0.00018838,2]
[311851630,1705471831990,-154.98450155,0.00018838,2]
[311851631,1705471832000,-521.6565183,0.00018838,2]
[311851632,1705471832010,-1588.60568926,0.00018838,2]
[311851633,1705471832021,-154.98450155,0.00018839,2]
[311851634,1705471832030,-323.26735776,0.00018839,2]
[311851635,1705471832039,-403.08302843,0.0001884,2]
[311851636,1705471832048,-154.98450155,0.0001884,2]
[311851637,1705471832057,-7945.19667066,0.0001884,2]
[311851647,1705471837803,-154.98450155,0.00018832,2]
[311851648,1705471837812,-2340.54263458,0.0001884,2]
[311851649,1705471837859,-18516.19830673,0.0001884,2]
[311851650,1705471837869,-192.85537647,0.0001885,2]
[311851651,1705471837878,-688.67953377,0.00018911,2]
[311851652,1705471837888,-902.45604304,0.00018912,2]
[311851653,1705471837899,-245.97076083,0.00018914,2]
[311851654,1705471837914,-154.98450155,0.00018915,2]
[311851655,1705471837924,-154.98450155,0.00018918,2]
[311851656,1705471837934,-182.44846614,0.00018918,2]
[311851657,1705471837943,-154.98450155,0.00018924,2]
[311851658,1705471837955,-155.78667383,0.00018928,2]
[311851659,1705471837964,-2071.696278,0.00018928,2]
[311851660,1705471837974,-470.24915818,0.00018928,2]
[311851662,1705471837984,-2101.24804165,0.00018928,2]
[311851663,1705471837993,-521.18978843,0.00018928,2]
[311851665,1705471838003,-2685.36865061,0.00018932,2]
[311851667,1705471838012,-11624.69625422,0.0001895,2]
[311851669,1705471838021,-519.46116191,0.0001895,2]
[311851671,1705471838032,-551.0568309,0.00018957,2]
[311851673,1705471838042,-1341.08672425,0.00018961,2]
[311851675,1705471838051,-199.39415287,0.00019502,2]
[311851677,1705471838061,-168.945364,0.00019982,2]
[311851679,1705471838070,-237.84642437,0.0002,2]
[311851681,1705471838080,-154.98450155,0.0002,2]
[311851683,1705471838089,-2995.12470388,0.0002,2]
[311851685,1705471838098,-677.90931289,0.0002,2]
[311851687,1705471838107,-200.0,0.00020721,2]
[311851688,1705471838116,-249.51667028,0.00021,2]
[311851690,1705471838125,-327.18048,0.00021,2]
[311851692,1705471838134,-246.39706185,0.00021464,2]
[311851694,1705471838143,-500.0,0.00021917,2]
[311851696,1705471838154,-551.84989273,0.00021917,2]
[311851698,1705471838163,-630.33,0.00021917,2]
[311851700,1705471838173,-2161.32,0.00021917,2]
[311851702,1705471838182,-500.0,0.00021917,2]
[311851704,1705471838191,-500.0,0.00021917,2]
[311851706,1705471838200,-3554.6,0.00021917,2]
[311851708,1705471838210,-500.0,0.00021917,2]
[311851710,1705471838219,-222.24610265,0.00021917,2]
[311851712,1705471838228,-500.0,0.00021917,2]
[311851714,1705471838237,-38968.39,0.00021917,2]
[311851716,1705471838247,-500.0,0.00021917,2]
[311851717,1705471838257,-21151.47,0.00021917,2]
[311851719,1705471838266,-715.23,0.00021917,2]
[311851721,1705471838276,-500.0,0.00021917,2]
[311851723,1705471838285,-500.0,0.00021917,2]
[311851725,1705471838294,-500.0,0.00021917,2]
[311851726,1705471838303,-618.57,0.00021917,2]
[311851727,1705471838312,-7616.15,0.00021917,2]
[311851728,1705471838322,-943.36,0.00021917,2]
[311851729,1705471838330,-500.0,0.00021917,2]
[311851730,1705471838339,-634.98,0.00021917,2]
[311851731,1705471838348,-500.0,0.00021917,2]
[311851732,1705471838357,-500.0,0.00021917,2]
[311851733,1705471838366,-500.0,0.00021917,2]
[311851734,1705471838375,-500.0,0.00021917,2]
[311851735,1705471838384,-500.0,0.00021917,2]
[311851736,1705471838393,-2742.56,0.00021917,2]
[311851737,1705471838402,-500.0,0.00021917,2]
[311851738,1705471838410,-500.0,0.00021917,2]
[311851739,1705471838419,-501.3034891,0.00021917,2]
[311851740,1705471838427,-500.0,0.00021917,2]
[311851741,1705471838436,-8822.36,0.00021917,2]
[311851742,1705471838446,-500.0,0.00021917,2]
[311851743,1705471838456,-201.40168416,0.00021917,2]
[311851744,1705471838465,-500.0,0.00021917,2]
[311851745,1705471838474,-500.0,0.00021917,2]
[311851746,1705471838483,-500.0,0.00021917,2]
[311851747,1705471838491,-3294.01,0.00021917,2]
[311851748,1705471838500,-500.0,0.00021917,2]
[311851749,1705471838509,-1709.3,0.00021917,2]
[311851750,1705471838518,-500.0,0.00021917,2]
[311851751,1705471838526,-506.04070361,0.00021917,2]
[311851752,1705471838535,-500.0,0.00021917,2]
[311851753,1705471838544,-236.06186457,0.00021917,2]
[311851754,1705471838553,-1018.1,0.00021917,2]
[311851755,1705471838562,-500.0,0.00021917,2]
[311851756,1705471838571,-500.0,0.00021917,2]
[311851757,1705471838580,-502.96184779,0.00021917,2]
[311851758,1705471838590,-557.81864135,0.00021917,2]
[311851759,1705471838598,-500.0,0.00021917,2]
[311851760,1705471838607,-500.0,0.00021917,2]
[311851761,1705471838617,-500.0,0.00021917,2]
[311851762,1705471838625,-2223.62,0.00021917,2]
[311851763,1705471838634,-182.750999,0.00021918,2]
[311851764,1705471838645,-183.90432024,0.00021998,2]
[311851765,1705471838654,-155.50410048,0.00021998,2]
[311851766,1705471838664,-2430.30340583,0.00021999,2]
[311851767,1705471838673,-3955.54830897,0.00022,2]
[311851768,1705471838682,-425.53656097,0.00022,2]
[311851769,1705471838692,-157.08440165,0.00022,2]
[311851770,1705471838701,-500.0,0.00022054,2]
[311851771,1705471838710,-630.33,0.00022054,2]
[311851773,1705471838719,-2161.32,0.00022054,2]
[311851775,1705471838728,-500.0,0.00022054,2]
[311851777,1705471838738,-500.0,0.00022054,2]
[311851779,1705471838749,-3554.6,0.00022054,2]
[311851782,1705471838759,-500.0,0.00022054,2]
[311851784,1705471838768,-500.0,0.00022054,2]
[311851786,1705471838777,-38968.39,0.00022054,2]
[311851788,1705471838787,-500.0,0.00022054,2]
[311851790,1705471838796,-21151.47,0.00022054,2]
[311851792,1705471838805,-715.23,0.00022054,2]
[311851793,1705471838814,-230.02217805,0.00022054,2]
[311851794,1705471838823,-500.0,0.00022054,2]
[311851795,1705471838833,-500.0,0.00022054,2]
[311851796,1705471838842,-618.57,0.00022054,2]
[311851797,1705471838851,-7616.15,0.00022054,2]
[311851798,1705471838861,-943.36,0.00022054,2]
[311851799,1705471838870,-634.98,0.00022054,2]
[311851800,1705471838880,-500.0,0.00022054,2]
[311851801,1705471838889,-500.0,0.00022054,2]
[311851802,1705471838904,-500.0,0.00022054,2]
[311851803,1705471838913,-500.0,0.00022054,2]
[311851804,1705471838923,-500.0,0.00022054,2]
[311851805,1705471838933,-500.0,0.00022054,2]
[311851806,1705471839005,-2742.56,0.00022054,2]
[311851807,1705471839023,-500.0,0.00022054,2]
[311851808,1705471839032,-500.0,0.00022054,2]
[311851809,1705471839042,-8822.36,0.00022054,2]
[311851810,1705471839051,-500.0,0.00022054,2]
[311851811,1705471839060,-500.0,0.00022054,2]
[311851812,1705471839070,-500.0,0.00022054,2]
[311851813,1705471839080,-500.0,0.00022054,2]
[311851814,1705471839089,-3294.01,0.00022054,2]
[311851815,1705471839099,-500.0,0.00022054,2]
[311851816,1705471839109,-1709.3,0.00022054,2]
[311851817,1705471839118,-500.0,0.00022054,2]
[311851818,1705471839128,-500.0,0.00022054,2]
[311851819,1705471839137,-1018.1,0.00022054,2]
[311851821,1705471839147,-226.6921614,0.00022054,2]
[311851823,1705471839157,-500.0,0.00022054,2]
[311851824,1705471839166,-500.0,0.00022054,2]
[311851825,1705471839175,-500.0,0.00022054,2]
[311851826,1705471839184,-500.0,0.00022191,2]